fUSD/lending_fUSD_20240729
["ID","MTS","AMOUNT","RATE_DAILY","PERIOD"]
[333614174,1722283832278,-31058.1901,0.000108,2]
[333614175,1722283832287,-56488.0,0.00010831,2]
[333614176,1722283832296,-19939.09790046,0.00010831,2]
[333614177,1722283832306,-4808.0,0.0001089,2]
[333614178,1722283832315,-309.20226975,0.00010898,2]
[333614179,1722283832324,-235.2687,0.00010898,2]
[333614180,1722283832333,-406.86979511,0.00010899,2]
[333614181,1722283832342,-406.86979504,0.00010899,2]
[333614182,1722283832351,-406.86979504,0.00010899,2]
[333614183,1722283832361,-406.86979504,0.00010899,2]
[333614184,1722283832369,-406.86979504,0.00010899,2]
[333614185,1722283832378,-406.86979504,0.00010899,2]
[333614186,1722283832387,-406.86979504,0.00010899,2]
[333614187,1722283832396,-406.86979504,0.00010899,2]
[333614188,1722283832405,-406.86979504,0.00010899,2]
[333614189,1722283832415,-309.20226975,0.00010899,2]
[333614190,1722283832423,-243716.397,0.000109,2]
[333614191,1722283832432,-1000.0,0.000109,2]
[333614192,1722283832441,-29503.2962,0.000109,2]
[333614193,1722283832450,-19066.3287,0.000109,2]
[333614194,1722283832459,-460.3253,0.000109,2]
[333614195,1722283832469,-758.6431724,0.000109,2]
[333614196,1722283832478,-406.86979504,0.000109,2]
[333614197,1722283832488,-309.20226975,0.000109,2]
[333614198,1722283832497,-1189.0,0.000109,2]
[333614199,1722283832507,-500.0,0.00010912,2]
[333614200,1722283832516,-418.95896555,0.00010958,2]
[333614201,1722283832526,-500.0,0.00010958,2]
[333614202,1722283832535,-500.0,0.00010958,2]
[333614203,1722283832545,-500.0,0.00010958,2]
[333614204,1722283832554,-500.0,0.00010958,2]
[333614205,1722283832563,-280.46,0.00010958,2]
[333614206,1722283832572,-277.15912492,0.00010958,2]
[333614207,1722283832581,-221.61180644,0.00010958,2]
[333614208,1722283832591,-500.0,0.00010958,2]
[333614209,1722283832604,-500.0,0.00010958,2]
[333614210,1722283832615,-500.0,0.00010958,2]
[333614211,1722283832624,-618.69,0.00010958,2]
[333614212,1722283832633,-500.0,0.00010958,2]
[333614213,1722283832644,-500.0,0.00010958,2]
[333614214,1722283832654,-500.0,0.00010958,2]
[333614215,1722283832663,-500.0,0.00010958,2]
[333614216,1722283832672,-258.38397068,0.00010958,2]
[333614217,1722283832683,-414.01891517,0.00010958,2]
[333614218,1722283832693,-500.0,0.00010958,2]
[333614219,1722283832703,-307.59279992,0.00010958,2]
[333614220,1722283832712,-602.75194665,0.00010958,2]
[333614221,1722283832721,-11456.07,0.00010959,2]
[333614222,1722283832920,-324.75,0.00010959,2]
[333614223,1722283832930,-270.63,0.00010959,2]
[333614224,1722283832940,-225.52,0.00010959,2]
[333614225,1722283832949,-187.94,0.00010959,2]
[333614226,1722283832959,-150.0,0.00010959,2]
[333614227,1722283832968,-156.61,0.00010959,2]
[333614228,1722283832977,-783.1,0.00010959,2]
[333614229,1722283832987,-250.0,0.00010959,2]
[333614230,1722283832997,-9250.0,0.00010986,2]
[333614231,1722283833006,-1355.7837577,0.00010994,2]
[333614232,1722283833016,-908.4507141,0.00010994,2]
[333614233,1722283833025,-3020.7797449,0.00010994,2]
[333614234,1722283833034,-587.79319849,0.00010996,2]
[333614235,1722283833043,-568.61389259,0.00010997,2]
[333614236,1722283833052,-219.97665441,0.00010997,2]
[333614237,1722283833062,-567.69,0.00010997,2]
[333614238,1722283833071,-500.0,0.00010997,2]
[333614239,1722283833080,-500.0,0.00010997,2]
[333614240,1722283833090,-500.0,0.00010997,2]
[333614241,1722283833100,-500.0,0.00010997,2]
[333614242,1722283833110,-507.65577282,0.00010997,2]
[333614243,1722283833120,-500.0,0.00010997,2]
[333614244,1722283833130,-500.0,0.00010997,2]
[333614245,1722283833140,-4702.34558792,0.00010997,2]
[333614246,1722283833149,-5029.667417,0.00010998,2]
[333614247,1722283833159,-17059.7487559,0.00010998,2]
[333614248,1722283833169,-362.0,0.00010998,2]
[333614249,1722283833178,-1254.0,0.00010998,2]
[333614250,1722283833188,-1819.0,0.00010998,2]
[333614251,1722283833198,-1663.0,0.00010998,2]
[333614252,1722283833208,-445.266,0.00010998,2]
[333614253,1722283833218,-550.0,0.00010998,2]
[333614254,1722283833227,-2382.0,0.00010998,2]
[333614255,1722283833237,-262.988,0.00010998,2]
[333614256,1722283833247,-206.9,0.00010998,2]
[333614257,1722283833256,-1994.0,0.00010998,2]
[333614258,1722283833266,-3283.0,0.00010998,2]
[333614259,1722283833275,-150.0,0.00010998,2]
[333614260,1722283833285,-1761.653,0.00010998,2]
[333614261,1722283833295,-5830.0,0.00010998,2]
[333614262,1722283833304,-5122.0,0.00010998,2]
[333614263,1722283833314,-38367.0,0.00010998,2]
[333614264,1722283833323,-1276.972,0.00010998,2]
[333614265,1722283833334,-8500.0,0.00010999,2]
[333614266,1722283833343,-567.69,0.00010999,2]
[333614267,1722283833353,-567.69,0.00010999,2]
[333614268,1722283833363,-567.69,0.00010999,2]
[333614269,1722283833373,-567.69,0.00010999,2]
[333614270,1722283833383,-567.69,0.00010999,2]
[333614271,1722283833393,-567.69,0.00010999,2]
[333614272,1722283833402,-567.69,0.00010999,2]
[333614273,1722283833412,-567.69,0.00010999,2]
[333614274,1722283833421,-567.69,0.00010999,2]
[333614275,1722283833431,-567.69,0.00010999,2]
[333614276,1722283833441,-567.69,0.00010999,2]
[333614277,1722283833451,-567.69,0.00010999,2]
[333614278,1722283833460,-567.69,0.00010999,2]
[333614279,1722283833469,-567.69,0.00010999,2]
[333614280,1722283833479,-567.69,0.00010999,2]
[333614281,1722283833489,-567.69,0.00010999,2]
[333614282,1722283833498,-567.69,0.00010999,2]
[333614283,1722283833507,-567.69,0.00010999,2]
[333614284,1722283833517,-567.69,0.00010999,2]
[333614285,1722283833526,-567.69,0.00010999,2]
[333614286,1722283833535,-567.69,0.00010999,2]
[333614287,1722283833544,-567.69,0.00010999,2]
[333614288,1722283833553,-567.80875251,0.00010999,2]
[333614289,1722283833563,-500.0,0.00010999,2]
[333614290,1722283833572,-500.0,0.00010999,2]
[333614291,1722283833582,-500.0,0.00010999,2]
[333614292,1722283833591,-500.0,0.00010999,2]
[333614293,1722283833603,-500.0,0.00010999,2]
[333614294,1722283833612,-500.0,0.00010999,2]
[333614295,1722283833622,-177.44,0.00010999,2]
[333614296,1722283833630,-500.0,0.00010999,2]
[333614297,1722283833640,-342.8317906,0.00010999,2]
[333614298,1722283833650,-244.68,0.00010999,2]
[333614299,1722283833659,-4825.5674191,0.00010999,2]
[333614300,1722283833668,-418.81,0.00010999,2]
[333614301,1722283833679,-554.0,0.00010999,2]
[333614302,1722283833688,-723332.93442628,0.00011,2]
[333614303,1722283833701,-337160.5111235,0.00011,2]
[333614309,1722283837462,-8779.34461839,0.00011,2]
[333614310,1722283837473,-710.8582766,0.00011,2]
[333614311,1722283837514,-1291.3936374,0.00011,2]
[333614342,1722283839505,-1942.37721319,0.00011,2]
[333614343,1722283839615,-6925.93042756,0.00011,2]
[333614344,1722283839632,-1016.89946502,0.00011,2]
[333614345,1722283839645,-285.24212946,0.00011,2]
[333614346,1722283839669,-293.59112959,0.00011,2]
[333614347,1722283839776,-397437.09967791,0.00011,2]
[333614348,1722283839785,-2492627.20288514,0.00011,2]
[333614349,1722283839795,-18000.0,0.00011,2]
[333614350,1722283839804,-3017.0,0.00011,2]
[333614351,1722283839814,-201.0,0.00011,2]
[333614352,1722283839823,-201.0,0.00011,2]
[333614353,1722283839832,-201.0,0.00011,2]
[333614354,1722283839841,-201.0,0.00011,2]
[333614355,1722283839851,-201.0,0.00011,2]
[333614356,1722283839861,-201.0,0.00011,2]
[333614357,1722283839872,-201.0,0.00011,2]
[333614358,1722283839881,-201.0,0.00011,2]
[333614360,1722283839891,-201.0,0.00011,2]
[333614362,1722283839900,-201.0,0.00011,2]
[333614364,1722283839909,-201.0,0.00011,2]
[333614365,1722283839918,-201.0,0.00011,2]
[333614366,1722283839927,-201.0,0.00011,2]
[333614367,1722283839937,-1110432.82028705,0.00011,2]
[333614369,1722283839946,-665333.07555769,0.00011,2]
[333614370,1722283839957,-884.16644664,0.00011,2]
[333614371,1722283839968,-3455.39202086,0.00011,2]
[333614379,1722283842508,-714.95437853,0.00010998,2]
[333614381,1722283842520,-359.04562147,0.00010998,2]
[333614382,1722283842530,-93419.11795917,0.00011,2]
[333614383,1722283842541,-384.34999965,0.00011,2]
[333614384,1722283842560,-9123.0327794,0.00011,2]
[333614385,1722283842671,-420944.96768108,0.00011,2]
[333614386,1722283842725,-360.80937151,0.00011,2]
[333614387,1722283842736,-833.64,0.00011,2]
[333614388,1722283842747,-1243.9391314,0.00011,2]
[333614389,1722283842759,-2298.55193949,0.00011,2]
[333614399,1722283845510,-288.74006827,0.000109,2]
[333614400,1722283845620,-683.97176608,0.000109,2]
[333614401,1722283845632,-831.51467711,0.000109,2]
[333614402,1722283845673,-337.08969517,0.000109,2]
[333614403,1722283845727,-694.66310709,0.000109,2]
[333614404,1722283845835,-547.84176427,0.000109,2]
[333614405,1722283845847,-620.1702649,0.000109,2]
[333614431,1722285031618,-732.69,8.219e-05,2]
[333614433,1722285031628,-3780.02046727,9.49e-05,2]
[333614434,1722285032176,-1103.63753879,9.49e-05,2]
[333614435,1722285032185,-250.0,9.49e-05,2]
[333614436,1722285032195,-304.55,9.609e-05,2]
[333614437,1722285032205,-821.93861383,9.609e-05,2]
[333614438,1722285032233,-178.06138617,9.609e-05,2]
[333614439,1722285032243,-500.0,9.624e-05,2]
[333614440,1722285032252,-325.5,9.677e-05,2]
[333614441,1722285032261,-60.69119617,9.677e-05,2]
[333614442,1722285032272,-13652.51880383,9.677e-05,2]
[333614443,1722285032282,-3100.0,9.9e-05,3]
[333614444,1722285032291,-833.79,9.9e-05,2]
[333614445,1722285032300,-6200.0,0.0001,3]
[333614446,1722285032309,-9300.0,0.000101,3]
[333614447,1722285032320,-12500.0,0.000102,3]
[333614448,1722285032329,-168.09,0.00010241,2]
[333614449,1722285032338,-259.94,0.000103,2]
[333614450,1722285032347,-15600.0,0.000103,3]
[333614451,1722285032356,-882.37,0.00010341,2]
[333614452,1722285032365,-834.07,0.00010341,2]
[333614453,1722285032374,-834.07,0.00010341,2]
[333614454,1722285032383,-834.07,0.00010341,2]
[333614455,1722285032392,-3100.0,0.000104,3]
[333614456,1722285032401,-732.69,0.00010458,2]
[333614457,1722285032411,-19999.99,0.00010475,2]
[333614458,1722285032421,-3259.7034,0.00010478,2]
[333614459,1722285032430,-3100.0,0.000105,3]
[333614460,1722285032439,-834.07,0.00010541,2]
[333614461,1722285032448,-3100.0,0.000106,3]
[333614462,1722285032457,-7500.0,0.000106,2]
[333614463,1722285032467,-5103.1910942,0.000107,2]
[333614464,1722285032478,-387.02289021,0.000107,2]
[333614465,1722285032489,-5405.95989758,0.000107,2]
[333614466,1722285032501,-6004.92195362,0.000107,2]
[333614467,1722285032512,-3410.4,0.000107,2]
[333614471,1722285037786,-402.75453625,0.000107,2]
[333614472,1722285037798,-6045.54035109,0.000107,2]
[333614660,1722285039939,-38386.61757168,0.000107,2]
[333614910,1722285042728,-356.82273996,0.000107,2]
[333614919,1722285042841,-143787.32417194,0.000107,2]
[333615216,1722285045904,-1347.9,0.000107,2]
[333615219,1722285045916,-2059.127034,0.000107,2]
[333615230,1722285046020,-68391.50999998,0.000107,2]
[333615236,1722285046080,-340.19,0.000107,2]
[333615652,1722285973230,150.0,6.121e-05,2]
[333615653,1722285973254,50.0,6.121e-05,2]
[333615656,1722286066868,150.0,6.121e-05,2]
[333615657,1722286066889,150.0,6.121e-05,2]
[333615658,1722286159882,300.0,6.121e-05,2]
[333615671,1722286231807,-732.39,8.219e-05,2]
[333615672,1722286231818,-209.76938948,8.219e-05,2]
[333615673,1722286231828,-200.0,9.677e-05,2]
[333615674,1722286231837,-800.0,9.741e-05,2]
[333615675,1722286231846,-1963.16515654,9.744e-05,2]
[333615676,1722286231864,-1451.33484346,9.744e-05,2]
[333615677,1722286231873,-219.0,9.8e-05,2]
[333615678,1722286231882,-6443.2,9.801e-05,2]
[333615679,1722286231892,-151.65,9.836e-05,2]
[333615680,1722286231901,-150.0,9.888e-05,2]
[333615681,1722286231910,-150.0,9.888e-05,2]
[333615682,1722286231919,-150.0,9.888e-05,2]
[333615683,1722286231929,-300.0,9.9e-05,3]
[333615684,1722286231938,-500.0,0.0001,2]
[333615685,1722286231947,-500.0,0.0001,2]
[333615686,1722286231956,-85.06515654,0.0001,2]
[333615687,1722286232621,-414.93484346,0.0001,2]
[333615688,1722286232630,-500.0,0.0001,2]
[333615689,1722286232640,-500.0,0.0001,2]
[333615690,1722286232649,-500.0,0.0001,2]
[333615691,1722286232658,-123.35515654,0.0001,2]
[333615692,1722286232675,-376.64484346,0.0001,2]
[333615693,1722286232684,-297.88,0.0001,2]
[333615694,1722286232693,-500.0,0.0001,2]
[333615695,1722286232702,-506.53,0.0001,2]
[333615696,1722286232712,-1250.0,0.0001,2]
[333615697,1722286232721,-600.0,0.0001,3]
[333615698,1722286232730,-839.8,0.00010055,2]
[333615699,1722286232739,-834.07,0.00010055,2]
[333615700,1722286232749,-834.07,0.00010055,2]
[333615701,1722286232758,-834.07,0.00010055,2]
[333615702,1722286232767,-834.07,0.00010055,2]
[333615703,1722286232776,-834.07,0.00010055,2]
[333615704,1722286232785,-834.07,0.00010055,2]
[333615705,1722286232794,-681.31494291,0.00010055,2]
[333615706,1722286232839,-152.75505709,0.00010055,2]
[333615707,1722286232848,-900.0,0.000101,3]
[333615708,1722286232858,-150.0,0.00010192,2]
[333615709,1722286232867,-300.0,0.00010192,2]
[333615710,1722286232875,-150.0,0.00010192,2]
[333615711,1722286232884,-150.0,0.00010192,2]
[333615712,1722286232894,-1300.0,0.000102,3]
[333615713,1722286232903,-1600.0,0.000103,3]
[333615714,1722286232912,-469.812475,0.00010328,2]
[333615715,1722286232922,-300.0,0.000104,3]
[333615716,1722286232931,-732.39,0.00010447,2]
[333615717,1722286232940,-910.28925678,0.00010449,2]
[333615718,1722286232949,-469.812475,0.00010457,2]
[333615719,1722286232958,-2354.28,0.00010457,2]
[333615720,1722286232967,-300.0,0.000105,3]
[333615721,1722286232977,-469.812475,0.00010586,2]
[333615722,1722286232986,-412.606,0.0001059,2]
[333615723,1722286232995,-2031.3223,0.000106,2]
[333615724,1722286233004,-488.8288,0.000106,2]
[333615725,1722286233013,-1980.1273,0.000106,2]
[333615726,1722286233022,-2347.3969,0.000106,2]
[333615727,1722286233032,-2720.03,0.000106,2]
[333615728,1722286233042,-680.26237473,0.000106,2]
[333615729,1722286233052,-300.0,0.000106,3]
[333615730,1722286233063,-4037.31770087,0.00010699,2]
[333615731,1722286233073,-20834.36723203,0.000107,2]
[333615735,1722286237777,-282.29427162,0.00010449,2]
[333615736,1722286237834,-1174.5999699,0.00010449,2]
[333615737,1722286237998,-1033.15461669,0.00010449,2]
[333615738,1722286238007,-3358.29322939,0.000107,2]
[333615739,1722286238019,-415.86603546,0.000107,2]
[333615740,1722286238030,-9043.62050319,0.000107,2]
[333615741,1722286238041,-12126.67632884,0.000107,2]
[333615762,1722286239944,-4530.10248661,0.000107,2]
[333615763,1722286239956,-3118.19999998,0.000107,2]
[333615764,1722286239968,-2121.68807362,0.000107,2]
[333615765,1722286239980,-1214.95822672,0.000107,2]
[333615766,1722286239992,-5273.66000855,0.000107,2]
[333615767,1722286240007,-13931.41268032,0.000107,2]
[333615768,1722286240269,-9756.48499206,0.000107,2]
[333615778,1722286242853,-1605.75,0.000107,2]
[333615779,1722286242864,-1272.52187998,0.000107,2]
[333615780,1722286242875,-360.25679982,0.000107,2]
[333615781,1722286242961,-3253.59999982,0.000107,2]
[333615782,1722286243071,-282.55068816,0.000107,2]
[333615814,1722286245980,-11229.3797632,0.000107,2]
[333615816,1722286245991,-2792.47103654,0.000107,2]
[333615820,1722286246037,-330.641,0.000107,2]
[333615826,1722286246096,-1342.10977,0.000107,2]
[333615827,1722286246107,-3360.90755,0.000107,2]
[333615836,1722286246213,-2207.1800953,0.000107,2]
[333615840,1722286246271,-6519.14488,0.000107,2]
[333615841,1722286246282,-1059.90114379,0.000107,2]
[333615843,1722286246293,-507.57957844,0.000107,2]
[333615846,1722286246335,-1210.3094896,0.000107,2]
[333615847,1722286246348,-1673.31189568,0.000107,2]
[333615848,1722286246393,-4442.27094152,0.000107,2]
[333615849,1722286246551,-333.86789756,0.000107,2]
[333615851,1722286399668,500.0,0.0002697,120]
[333615852,1722286403315,500.0,0.00025146,120]
[333615853,1722286447895,800.0,0.00026959,120]
[333615855,1722287229571,155.0,0.00027,120]
[333615856,1722287244502,155.0,0.00025,60]
[333615870,1722287433157,-2863.002849,8.178e-05,2]
[333615871,1722287433166,-169.56146874,8.219e-05,2]
[333615872,1722287433176,-500.0,8.219e-05,2]
[333615873,1722287433185,-169.12,8.219e-05,2]
[333615874,1722287433194,-887.58,8.219e-05,2]
[333615875,1722287433203,-5551.92,9.189e-05,2]
[333615876,1722287433213,-334.14,9.198e-05,2]
[333615877,1722287433223,-1218.23,9.2e-05,2]
[333615878,1722287433232,-250.0,9.203e-05,2]
[333615879,1722287433242,-250.30148833,9.223e-05,2]
[333615880,1722287433254,-109.69851167,9.223e-05,2]
[333615881,1722287433264,-690.37260301,9.226e-05,2]
[333615882,1722287433275,-10911.19550408,9.226e-05,2]
[333615883,1722287433488,-11107.41431585,9.226e-05,2]
[333615884,1722287433545,-710.26876103,9.226e-05,2]
[333615885,1722287433605,-470.74881603,9.226e-05,2]
[333615886,1722287433615,-200.0,9.292e-05,2]
[333615887,1722287433624,-640.0,9.292e-05,2]
[333615888,1722287433633,-3755.56,9.392e-05,2]
[333615889,1722287433643,-746.02,9.579e-05,2]
[333615890,1722287433652,-499.99,9.67e-05,2]
[333615891,1722287433661,-1261.27,9.67e-05,2]
[333615893,1722287433670,-1332.5861725,9.738e-05,2]
[333615895,1722287433679,-168.99,9.748e-05,2]
[333615897,1722287433693,-2147.86361307,9.749e-05,2]
[333615899,1722287433702,-154.01,9.826e-05,2]
[333615901,1722287433711,-154.01,9.834e-05,2]
[333615903,1722287433720,-154.01,9.842e-05,2]
[333615905,1722287433730,-154.01,9.85e-05,2]
[333615907,1722287433739,-154.01,9.858e-05,2]
[333615909,1722287433748,-154.01,9.867e-05,2]
[333615911,1722287433756,-44.42637868,9.875e-05,2]
[333615913,1722287433770,-109.58362132,9.875e-05,2]
[333615915,1722287433779,-150.0,9.887e-05,2]
[333615917,1722287433788,-150.0,9.888e-05,2]
[333615919,1722287433797,-150.0,9.888e-05,2]
[333615921,1722287433807,-150.0,9.888e-05,2]
[333615923,1722287433816,-150.0,9.888e-05,2]
[333615925,1722287433825,-150.0,9.888e-05,2]
[333615927,1722287433837,-150.0,0.0001001,2]
[333615929,1722287433847,-442.38,0.00010045,2]
[333615930,1722287433856,-435.56,0.00010055,2]
[333615932,1722287433865,-420.38,0.00010055,2]
[333615934,1722287433875,-1097.38,0.00010055,2]
[333615935,1722287433884,-420.38,0.00010055,2]
[333615936,1722287433893,-150.0,0.00010071,2]
[333615937,1722287433903,-150.0,0.00010132,2]
[333615938,1722287433913,-150.0,0.00010162,2]
[333615939,1722287433922,-442.38,0.00010182,2]
[333615940,1722287433931,-442.38,0.00010182,2]
[333615941,1722287433940,-442.38,0.00010188,2]
[333615942,1722287433950,-442.38,0.00010188,2]
[333615943,1722287433959,-442.38,0.00010188,2]
[333615944,1722287433968,-442.38,0.00010188,2]
[333615945,1722287433978,-300.94,0.00010192,2]
[333615946,1722287433987,-425.72,0.00010192,2]
[333615947,1722287433996,-300.0,0.00010192,2]
[333615948,1722287434005,-355.99,0.00010192,2]
[333615949,1722287434015,-152.02,0.00010192,2]
[333615950,1722287434024,-425.72,0.00010192,2]
[333615951,1722287434033,-530.19,0.00010192,2]
[333615952,1722287434042,-355.99,0.00010192,2]
[333615953,1722287434051,-425.72,0.00010192,2]
[333615954,1722287434060,-530.19,0.00010192,2]
[333615955,1722287434069,-355.99,0.00010192,2]
[333615956,1722287434078,-154.06,0.00010192,2]
[333615957,1722287434087,-355.99,0.00010192,2]
[333615958,1722287434096,-273.09,0.00010192,2]
[333615959,1722287434105,-353.53,0.00010192,2]
[333615960,1722287434114,-13240.13,0.00010197,2]
[333615961,1722287434123,-442.38,0.00010218,2]
[333615962,1722287434131,-1789.43697868,0.00010228,2]
[333615963,1722287434143,-358.42663439,0.00010228,2]
[333615964,1722287434152,-150.0,0.00010254,2]
[333615965,1722287434161,-150.0,0.00010254,2]
[333615966,1722287434170,-939.624952,0.00010328,2]
[333615967,1722287434179,-360.0,0.00010376,2]
[333615968,1722287434188,-150.0,0.00010376,2]
[333615969,1722287434198,-442.38,0.00010425,2]
[333615970,1722287434207,-887.58,0.00010435,2]
[333615971,1722287434216,-150.0,0.00010437,2]
[333615972,1722287434226,-150.0,0.00010437,2]
[333615973,1722287434236,-640.0,0.00010454,2]
[333615974,1722287434245,-939.624952,0.00010457,2]
[333615975,1722287434254,-442.38,0.0001049,2]
[333615976,1722287434264,-150.0,0.00010498,2]
[333615977,1722287434273,-1205.64004507,0.000105,2]
[333615978,1722287434282,-259.5402,0.000105,2]
[333615979,1722287434292,-442.38,0.0001058,2]
[333615980,1722287434301,-442.38,0.0001058,2]
[333615981,1722287434310,-442.38,0.0001058,2]
[333615982,1722287434320,-442.38,0.0001058,2]
[333615983,1722287434328,-442.38,0.0001058,2]
[333615984,1722287434338,-442.38,0.0001058,2]
[333615985,1722287434347,-442.38,0.0001058,2]
[333615986,1722287434356,-939.624952,0.00010586,2]
[333615987,1722287434365,-13240.13,0.0001059,2]
[333615988,1722287434374,-13240.13,0.0001059,2]
[333615989,1722287434384,-3000.0,0.0001059,2]
[333615990,1722287434393,-1102.8588,0.000106,2]
[333615991,1722287434402,-11648.6407,0.000106,2]
[333615992,1722287434411,-7024.4885,0.000106,2]
[333615993,1722287434421,-1000.0,0.000106,2]
[333615994,1722287434430,-150.0,0.0001062,2]
[333615995,1722287434439,-150.0,0.0001062,2]
[333615996,1722287434448,-13240.13,0.00010658,2]
[333615997,1722287434457,-14487.7952,0.00010668,2]
[333615998,1722287434467,-13240.13,0.0001069,2]
[333615999,1722287434476,-13240.13,0.0001069,2]
[333616000,1722287434485,-13240.13,0.0001069,2]
[333616001,1722287434495,-42208.85355331,0.000107,2]
[333616002,1722287434504,-165.79910064,0.000107,2]
[333616003,1722287434513,-150.0,0.00010712,2]
[333616004,1722287434523,-469.812475,0.00010715,2]
[333616005,1722287434532,-939.624952,0.00010715,2]
[333616006,1722287434541,-29537.0,0.0001074,2]
[333616007,1722287434550,-150.0,0.00010742,2]
[333616008,1722287434559,-13240.13,0.00010758,2]
[333616009,1722287434568,-13240.13,0.00010758,2]
[333616010,1722287434578,-22685.2632,0.00010768,2]
[333616011,1722287434587,-7500.0,0.00010768,2]
[333616012,1722287434596,-382.2913202,0.0001078,2]
[333616013,1722287434606,-13240.13,0.0001079,2]
[333616014,1722287434616,-5035.45332215,0.000108,2]
[333616015,1722287434625,-6516.90755163,0.000108,2]
[333616016,1722287434634,-150.0,0.00010803,2]
[333616017,1722287434643,-469.812475,0.00010844,2]
[333616018,1722287434652,-939.624952,0.00010844,2]
[333616019,1722287434662,-2222.00686777,0.00010849,2]
[333616020,1722287434672,-684.06897782,0.00010851,2]
[333616021,1722287434681,-684.06897782,0.00010857,2]
[333616022,1722287434694,-196.94644859,0.00010858,2]
[333616023,1722287434703,-171.01724446,0.00010858,2]
[333616024,1722287434712,-2222.00686777,0.00010861,2]
[333616025,1722287434722,-684.06897782,0.00010862,2]
[333616026,1722287434733,-150.0,0.00010864,2]
[333616027,1722287434743,-171.01724446,0.00010867,2]
[333616028,1722287434752,-236369.854,0.00010868,2]
[333616029,1722287434761,-255.0,0.00010875,2]
[333616030,1722287434773,-171.01724446,0.00010879,2]
[333616031,1722287434783,-2222.00686777,0.00010881,2]
[333616032,1722287434793,-376.10116488,0.00010899,2]
[333616033,1722287434802,-158.67218139,0.00010899,2]
[333616034,1722287434812,-196.94644858,0.00010899,2]
[333616035,1722287434821,-677.23489617,0.00010899,2]
[333616036,1722287434830,-677.23489616,0.00010899,2]
[333616037,1722287434840,-677.23489616,0.00010899,2]
[333616038,1722287434849,-677.23489616,0.00010899,2]
[333616039,1722287434858,-376.10116487,0.00010899,2]
[333616040,1722287434867,-376.10116487,0.00010899,2]
[333616041,1722287434876,-376.10116487,0.000109,2]
[333616042,1722287434885,-376.10116487,0.000109,2]
[333616043,1722287434894,-376.10116487,0.000109,2]
[333616044,1722287434903,-150.0,0.000109,2]
[333616045,1722287434913,-5942.26883463,0.000109,2]
[333616046,1722287434922,-385.6707,0.000109,2]
[333616047,1722287434931,-10000.0,0.000109,2]
[333616048,1722287434941,-376.10116487,0.000109,2]
[333616049,1722287434950,-159.14862256,0.000109,2]
[333616050,1722287434959,-1606.67387095,0.000109,2]
[333616051,1722287434968,-166.53267703,0.000109,2]
[333616052,1722287434977,-166.532677,0.000109,2]
[333616053,1722287434987,-166.532677,0.000109,2]
[333616054,1722287434996,-166.532677,0.000109,2]
[333616055,1722287435005,-500.0,0.00010902,2]
[333616056,1722287435014,-220.94,0.00010904,2]
[333616057,1722287435023,-500.0,0.00010911,2]
[333616058,1722287435033,-500.0,0.00010912,2]
[333616059,1722287435042,-500.0,0.0001092,2]
[333616060,1722287435051,-500.0,0.00010929,2]
[333616061,1722287435062,-500.0,0.00010937,2]
[333616062,1722287435071,-500.0,0.00010946,2]
[333616063,1722287435081,-500.0,0.00010955,2]
[333616064,1722287435090,-291.52675443,0.00010958,2]
[333616065,1722287435099,-595.50914919,0.00010958,2]
[333616066,1722287435108,-350.96015869,0.00010958,2]